Cogmind - Beta 10.2 @@@ ROGUE MODE // 2021.05.23 @ 18:46:18 // Winter2019/RPGLIKE Player: Trantor Result: Destroyed by P4-J4M(z) with Zionite Laser-S Performance ------------- Evolutions (3) 1500 Regions Visited (13) 2600 Robots Destroyed (358) 1790 Value Destroyed (11361) 11361 Prototype IDs (32) 640 Alien Tech Used (0) 0 Bonus (6223) 6223 TOTAL SCORE: 24114 Bonus ------- Triggered High Security 500 High Alert Combat Kills 4397 Follower Combat Kills 215 Met Imprinter 300 Destroyed Z-Imprinter 1000 Friendly Fire -189 Cogmind --------- Core Integrity 0/1400 Matter 350/350 Energy 130/150 System Corruption 0% Temperature Cool (478) Movement Hovering (98) Ox1 Location -7/Deep Caves Parts ------- > --- POWER (3) -------- Zionite Light DM Reactor Zionite Light DM Reactor Zionite Light DM Reactor > --- PROPULSION (3) --- Zionite Glidesys I Zionite Glidesys II Zionite Glidesys II > --- UTILITY (9) ------ Experimental Heat Sink Zionite Metafield Generator Advanced Signal Interpreter Advanced Targeting Computer Advanced Targeting Computer Improved Maneuvering Thrusters Advanced Reaction Control System Hardened Medium Armor Plating Hacking Suite > --- WEAPON (4) ------- Zionite Laser-M Proton Missile Launcher > --- INVENTORY (5) ---- Zionite Biocell (1000) Particle Charger Weapon Cycler Cooled Plasma Cannon Improved Grenade Launcher Peak State ------------ > --- POWER ------------ Zionite Light DM Reactor Zionite Light DM Reactor Zionite Light DM Reactor > --- PROPULSION ------- Zionite Glidesys II Zionite Glidesys II Zionite Glidesys II > --- UTILITY ---------- Zionite Metafield Generator Advanced Signal Interpreter Advanced Targeting Computer Advanced Targeting Computer Advanced Reaction Control System Advanced Phase Shifter Hardened Medium Armor Plating Shield Generator Hacking Suite > --- WEAPON ----------- Zionite Laser-M Zionite Laser-M Zionite Laser-M Cooled Plasma Cannon > --- INVENTORY -------- Zionite Biocell Particle Charger Weapon Cycler Proton Missile Launcher Improved Grenade Launcher [Rating: 124] Favorites ----------- Power Enhanced Nuclear Core Engine Cooled Ion Engine Power Core Enhanced Nuclear Core Reactor Zionite Light DM Reactor Propulsion Combat Airjet Treads Light Treads Leg Aluminum Leg Hover Unit Combat Airjet Utility Advanced Targeting Computer Device Shield Generator Storage Zionite Biocell Processor Advanced Targeting Computer Hackware Hacking Suite Protection Hardened Medium Armor Plating Weapon EM Pulse Cannon Energy Gun Improved EM Shotgun Energy Cannon EM Pulse Cannon Ballistic Gun Assault Rifle Launcher Improved Grenade Launcher Special Weapon Remote Datajack Special Melee Weapon Improved Datajack Build | -11 -10 -10 -9 -9 -9 -8 -8 -8 -7 -7 -7 -7 -7 ------- Run | Scr Mat Min Mat Min Exi Min Mat Sto Fac Low Low Zio Dee Slots Evolved 15 | 3 3 . 3 . . . 4 . 1 1 . . . Power 2 | . 1 . . . . . . . 1 . . . . Propulsion 2 | 1 1 . . . . . . . . . . . . Utility 8 | 1 1 . 2 . . . 3 . . 1 . . . Weapon 3 | 1 . . 1 . . . 1 . . . . . . Parts Attached 171 | 3 24 12 24 4 . . 27 9 29 1 2 . 36 Power 24 | . 2 3 3 . . . 1 1 6 . . . 8 Engine 11 | . 2 3 3 . . . 1 1 1 . . . . Core 6 | . . . . . . . . . 5 . . . 1 Reactor 7 | . . . . . . . . . . . . . 7 Propulsion 24 | 2 6 4 1 . . . . 4 2 . . . 5 Treads 5 | 2 3 . . . . . . . . . . . . Leg . | . . . . . . . . . . . . . . Wheel . | . . . . . . . . . . . . . . Hover 19 | . 3 4 1 . . . . 4 2 . . . 5 Flight . | . . . . . . . . . . . . . . Utility 48 | . 4 1 11 2 . . 8 3 4 1 1 . 13 Device 14 | . . . . 1 . . 2 1 1 1 . . 8 Storage 2 | . . . . . . . 1 . . . . . 1 Processor 8 | . 1 . 4 . . . 3 . . . . . . Hackware 1 | . . . 1 . . . . . . . . . . Protection 23 | . 3 1 6 1 . . 2 2 3 . 1 . 4 Artifact . | . . . . . . . . . . . . . . Weapon 75 | 1 12 4 9 2 . . 18 1 17 . 1 . 10 Energy Gun 17 | . . . 4 1 . . 3 . 3 . . . 6 Energy Cannon 35 | . 9 2 3 . . . 11 1 6 . 1 . 2 Ballistic Gun 2 | 1 . . 1 . . . . . . . . . . Ballistic Cannon . | . . . . . . . . . . . . . . Launcher 19 | . 3 2 1 1 . . 4 . 6 . . . 2 Special Weapon 1 | . . . . . . . . . 1 . . . . Impact Weapon . | . . . . . . . . . . . . . . Slashing Weapon . | . . . . . . . . . . . . . . Piercing Weapon . | . . . . . . . . . . . . . . Special Melee Weapon 1 | . . . . . . . . . 1 . . . . Unidentified Prototypes 24 | . . . 4 . . . 3 3 4 . . . 10 Parts Lost 3 | . . . . . . . . . 1 . . . 2 Power . | . . . . . . . . . . . . . . Propulsion . | . . . . . . . . . . . . . . Utility 1 | . . . . . . . . . 1 . . . . Weapon 2 | . . . . . . . . . . . . . 2 Highest Loss Streak 2 | . . . . . . . . . 1 . . . 2 Average Slot Usage (%) 98 | . 92 97 97 99 100 100 99 99 99 100 100 100 99 Engine 8 | . 12 17 15 15 15 15 11 11 2 . . . . Core 5 | . . . . . . . . . 13 15 15 15 8 Treads 2 | . 16 . . . . . . . . . . . . Hover 17 | . 10 30 24 23 23 23 18 16 15 15 15 15 14 Device 6 | . . . . 2 7 7 8 5 5 14 15 15 17 Processor 18 | . 11 10 12 15 15 15 23 23 22 21 21 21 18 Hackware 4 | . . . 2 7 7 7 5 5 5 5 5 5 5 Protection 10 | . 15 20 18 11 7 7 7 10 10 5 5 5 5 Energy Gun 2 | . . . 5 6 7 7 3 . . . . . 7 Energy Cannon 16 | . 23 18 15 15 15 15 14 17 15 15 15 21 7 Launcher 2 | . . 1 . . . . 2 5 4 5 4 . 4 Naked Turns . | . . . . . . . . . . . . . . Heaviest Build 72 | 9 19 24 42 43 36 36 61 63 72 65 68 68 72 Greatest Support 89 | 45 45 71 71 71 71 71 71 71 71 71 71 71 89 Greatest Overweight (x) 1 | . 1 . . . . . . 1 1 . . . 1 Average Overweight (x) . | . . . . . . . . . . . . . . Largest Inventory Capacity 5 | 2 2 2 3 3 3 3 3 4 5 5 5 5 5 Average Capacity 3 | 2 2 2 2 3 3 3 3 3 4 5 5 5 5 Most Carried 5 | 2 2 2 3 3 2 3 3 4 5 4 5 5 5 Average Carried 3 | . 1 2 2 2 2 2 2 3 4 3 4 4 4 Final Capacity 5 | 2 2 2 3 3 3 3 3 4 5 5 5 5 5 Final Carried 5 | 1 2 2 3 2 2 3 3 4 4 4 4 5 5 Class Distribution -------------------- 22% | Hacker-Tank 17% | Hacker-Gunner 15% | Scavenger-Gunner 14% | Mutant 10% | Scavenger-Mutant 5% | Scavenger-Scout 5% | Hacker-Mutant 4% | Commander-Tank Dominant Class ---------------- Mutant | -10/Materials Mutant | -10/Mines Scavenger-Mutant | -9/Materials Scavenger-Gunner | -9/Mines Scavenger-Gunner | -9/Exiles Scavenger-Gunner | -8/Mines Scavenger-Scout | -8/Materials Commander-Tank | -8/Storage Hacker-Tank | -7/Factory Hacker-Gunner | -7/Lower Caves Hacker-Gunner | -7/Lower Caves Hacker-Gunner | -7/Zion Hacker-Mutant | -7/Deep Caves Resources | -11 -10 -10 -9 -9 -9 -8 -8 -8 -7 -7 -7 -7 -7 ----------- Run | Scr Mat Min Mat Min Exi Min Mat Sto Fac Low Low Zio Dee Matter Collected 3226 | 249 347 252 282 190 . 59 390 155 629 169 10 10 484 Remotely . | . . . . . . . . . . . . . . Salvage Created 13106 | 77 931 453 1751 561 . 249 1985 812 4533 193 884 . 677 Parts 738 | . 53 23 110 30 . 20 121 63 227 7 41 . 43 Haulers Intercepted 23 | . 2 . 5 . . . 6 5 5 . . . . Recyclers Shooed 5 | . 3 . . . . . . . 2 . . . . Parts Field Recycled . | . . . . . . . . . . . . . . Retrieved Matter . | . . . . . . . . . . . . . . Parts Self-Destructed 15 | . . . . . . . . . . 7 8 . . Prevented 27 | . . . . . . . . . . 5 22 . . Kills | -11 -10 -10 -9 -9 -9 -8 -8 -8 -7 -7 -7 -7 -7 ------- Run | Scr Mat Min Mat Min Exi Min Mat Sto Fac Low Low Zio Dee Combat Hostiles Destroyed 282 | . 19 26 38 15 . 8 41 19 77 10 18 . 11 Guns 21 | . . . 3 4 . 3 6 . . . . . 5 Cannons 131 | . 10 6 23 5 . 3 17 14 32 5 15 . 1 AOE 105 | . 9 19 7 6 . 2 16 5 30 5 2 . 4 Classes Destroyed 21 | 1 8 2 1 . . 1 3 . 2 . 2 . 1 Worker 14 | . 2 . . 2 . . 2 1 7 . . . . Builder 14 | . 3 1 . 1 . 1 2 . 6 . . . . Tunneler 5 | . 2 . . 3 . . . . . . . . . Hauler 23 | . 2 . 5 . . . 6 5 5 . . . . Recycler 11 | 1 1 1 1 1 . . 2 . 4 . . . . Mechanic 3 | . . . . . . . 1 1 1 . . . . Operator 11 | . 1 . 1 . . . 5 . 4 . . . . Watcher 16 | . 2 . 5 . . . 2 . 7 . . . . Swarmer 48 | . 3 3 8 6 . 4 4 4 6 7 3 . . Grunt 129 | . 16 4 20 7 . 3 24 5 40 1 9 . . Brawler 11 | . . . . . . . 2 . 9 . . . . Duelist 11 | . . . . . . . 1 . 7 1 2 . . Protector 2 | . . . . . . . . . 2 . . . . Sentry 39 | . . . 10 . . . 10 9 8 1 1 . . Demolisher 2 | . . 2 . . . . . . . . . . . Hunter 6 | . . . . . . 1 1 1 3 . . . . Programmer 2 | . . . . . . . . . 2 . . . . Behemoth 1 | . . . . . . . . . . . 1 . . Z-Technician 5 | . . . . . . . . . . . . . 5 Z-Light 7 | . . . . . . . . . . . . . 7 Thief 2 | . . . . . . . . . . . 2 . . Assembled 22 | . . 17 . 2 . . . . . . . . 3 Best Kill Streak 17 | 1 4 17 7 5 . 4 7 6 13 4 3 . 5 Combat Bots Only 17 | . 4 17 5 3 . 4 7 5 13 4 3 . 3 Max Kills in Single Turn 5 | 1 2 5 3 3 . 3 4 5 3 2 1 . 4 Gunslinging . | . . . . . . . . . . . . . . Exploded 5 | . 2 5 3 3 . 2 3 4 3 2 1 . 1 Melee . | . . . . . . . . . . . . . . Uniques/NPCs Destroyed 1 | . . . . . . . . . . . . . 1 Z-Imprinter (-7/Deep Caves) Combat | -11 -10 -10 -9 -9 -9 -8 -8 -8 -7 -7 -7 -7 -7 -------- Run | Scr Mat Min Mat Min Exi Min Mat Sto Fac Low Low Zio Dee Damage Taken 7249 | . 357 460 690 336 . 39 770 200 1921 123 173 . 2180 Core 4903 | . 276 293 402 222 . 31 519 121 1273 72 126 . 1568 Absorbed by Shields 1389 | . . . . 2 . 13 298 79 733 45 64 . 155 Redirected to Core 4237 | . 209 219 344 189 . 31 449 111 1136 62 95 . 1392 Core Remaining (%) 95 | 100 . 83 . . . 100 . 100 . . . . . Volleys Fired 549 | . 49 30 69 29 . 7 83 38 165 15 26 . 38 Largest 4 | . 2 2 3 3 . 3 3 3 3 3 4 . 3 Hottest 257 | . 120 112 172 157 . 157 189 161 167 167 257 . 222 Shots Fired 1266 | . 91 44 175 60 . 20 212 104 380 31 80 . 69 Gun 132 | . 2 . 34 15 . 6 41 . . . . . 34 Cannon 1024 | . 82 32 141 37 . 14 161 99 336 24 80 . 18 Launcher 110 | . 7 12 . 8 . . 10 5 44 7 . . 17 Special . | . . . . . . . . . . . . . . Kinetic 2 | . 2 . . . . . . . . . . . . Thermal 289 | . 56 . 3 . . . . 33 121 8 28 . 40 Explosive 73 | . 7 12 . 8 . . 10 5 24 7 . . . Electromagnetic 902 | . 26 32 172 52 . 20 202 66 235 16 52 . 29 Robot Hit Streak 46 | . 22 7 29 41 . 8 38 24 46 7 46 . 19 Robot Miss Streak 5 | . 5 5 2 1 . 1 1 1 2 2 1 . 3 Penetration Max . | . . . . . . . . . . . . . . Secondary Targets 1 | . . . . . . . . . . . . . 1 Max Gunslinging Chain 1 | . . . . . . . . . . . . . 1 Shots Hit Robots 861 | . 53 24 136 38 . 12 163 57 259 17 61 . 41 Core Hits 578 | . 39 39 61 29 . 14 108 31 190 15 23 . 29 Critical Hits 11 | . . 1 1 . . . 2 1 4 . 1 . 1 Critical Kills 4 | . . . 1 . . . 1 1 1 . . . . Critical Parts Destroyed 6 | . . . . . . . 1 . 3 . 1 . 1 Melee Attacks . | . . . . . . . . . . . . . . Impact . | . . . . . . . . . . . . . . Slashing . | . . . . . . . . . . . . . . Piercing . | . . . . . . . . . . . . . . Sneak Attacks . | . . . . . . . . . . . . . . Combat Hostiles . | . . . . . . . . . . . . . . Follow-up Attacks . | . . . . . . . . . . . . . . Damage Inflicted 35032 | 4 1803 1721 3651 1554 . 389 5508 1916 12140 1025 2103 . 3218 Guns 2230 | . 10 . 563 230 . 102 713 . . . . . 612 Cannons 17262 | . 1123 479 2409 427 . 156 2252 1400 6496 381 1940 . 199 Explosions 15260 | . 653 1221 651 897 . 131 2429 516 5548 644 163 . 2407 Melee . | . . . . . . . . . . . . . . Ramming 280 | 4 17 21 28 . . . 114 . 96 . . . . Kinetic 10 | . 10 . . . . . . . . . . . . Thermal 10155 | . 766 36 675 583 . 131 774 596 3047 142 836 . 2569 Explosive 7313 | . 591 1185 . 314 . . 1655 322 2602 644 . . . Electromagnetic 17274 | . 419 479 2948 657 . 258 2965 998 6395 239 1267 . 649 Impact . | . . . . . . . . . . . . . . Slashing . | . . . . . . . . . . . . . . Piercing . | . . . . . . . . . . . . . . Highest Corruption 4 | . 1 1 4 4 4 4 . 2 2 2 2 2 . Average Corruption 2 | . 1 1 4 4 4 4 . 1 1 2 2 2 . Corruption Purged . | . . . . . . . . . . . . . . Effects 102 | . 1 3 22 19 7 11 . 3 13 10 12 1 . Message Errors 20 | . 1 . 4 4 2 1 . 1 2 1 4 . . Matter Fused 22 | . . . 7 8 1 6 . . . . . . . Heat Flow Errors 13 | . . . 3 . . 1 . . 2 4 2 1 . Energy Discharges 15 | . . 1 1 2 1 . . . 5 1 4 . . Parts Rejected 2 | . . . . 2 . . . . . . . . . Data Loss (minor) 20 | . . 2 2 3 3 2 . 2 2 3 1 . . Targeting Errors 10 | . . . 5 . . 1 . . 2 1 1 . . Overload Shots . | . . . . . . . . . . . . . . Overflow Damage 1290 | . 42 18 111 81 . . 200 12 212 70 33 . 511 Projectiles 361 | . 5 3 88 22 . . 69 9 121 11 33 . . Explosions 881 | . 37 15 23 59 . . 94 3 80 59 . . 511 Melee 48 | . . . . . . . 37 . 11 . . . . Knockbacks 1 | . . . . . . . 1 . . . . . . Impact 1 | . . . . . . . 1 . . . . . . Kinetic . | . . . . . . . . . . . . . . Secondary . | . . . . . . . . . . . . . . Self-Inflicted Damage 839 | . 10 50 183 126 . 52 186 32 151 49 . . . Shots 26 | . 1 1 3 4 . 1 6 2 6 2 . . . Rammed 16 | . 1 1 4 . . . 5 . 5 . . . . Targets Rammed 17 | 1 1 1 4 . . . 5 . 5 . . . . Kicked . | . . . . . . . . . . . . . . Crushed 1 | 1 . . . . . . . . . . . . . Highest Temperature 540 | . 222 228 438 255 . 381 237 138 511 208 332 135 540 Average Temperature 108 | . 56 71 91 76 . 130 62 41 124 68 118 77 256 Received Heat Transfer 2193 | . 171 63 207 60 . . 240 42 648 6 51 . 705 Effects 38 | . . 1 5 2 . 3 . . 15 . . . 12 Shutdowns 10 | . . . . . . . . . 7 . . . 3 Energy Bleed 4 | . . 1 1 . . . . . 2 . . . . Interference 11 | . . . 3 2 . 3 . . 2 . . . 1 Matter Decay 1 | . . . . . . . . . . . . . 1 Short Circuit 6 | . . . 1 . . . . . . . . . 5 Damage (minor) 3 | . . . . . . . . . 1 . . . 2 Damage (major) 3 | . . . . . . . . . 3 . . . . Siege Activations . | . . . . . . . . . . . . . . Robots Corrupted 27 | . . 1 6 1 . . 2 . 15 . 1 . 1 Combat Hostiles 25 | . . 1 5 . . . 2 . 15 . 1 . 1 Parts Fried 115 | . 2 6 22 4 . 1 21 2 44 1 6 . 6 Impact Corruptions 3 | . . . . . . . 2 . 1 . . . . Robots Melted . | . . . . . . . . . . . . . . Combat Hostiles . | . . . . . . . . . . . . . . Parts Melted 13 | . . . 1 1 . . 2 1 3 2 2 . 1 Heat Transferred 10869 | . 1543 50 837 750 . 100 850 750 4001 200 1050 . 738 Parts Sabotaged . | . . . . . . . . . . . . . . Parts Stolen . | . . . . . . . . . . . . . . Parts Stripped . | . . . . . . . . . . . . . . Power Chain Reactions 47 | . 1 . 8 5 . 1 11 4 13 . 2 . 2 Missiles Intercepted . | . . . . . . . . . . . . . . Alert | -11 -10 -10 -9 -9 -9 -8 -8 -8 -7 -7 -7 -7 -7 ------- Run | Scr Mat Min Mat Min Exi Min Mat Sto Fac Low Low Zio Dee Peak Influence 2904 | . 411 249 869 612 . 238 843 922 2904 . . . . Initial 346 | . 3 39 50 338 . . 14 163 346 . . . . Average 557 | . 148 135 412 495 . 53 438 503 1167 . . . . Maximum Alert Level 5 | . 2 1 3 2 . 1 3 3 5 . . . . Low Security (%) 27 | 100 67 96 21 . . 96 7 18 . . . . . Level 1 18 | . 28 3 23 15 . 3 47 22 1 . . . . Level 2 26 | . 4 . 46 84 . . 35 23 21 . . . . Level 3 12 | . . . 7 . . . 10 35 25 . . . . Level 4 9 | . . . . . . . . . 33 . . . . Level 5 . | . . . . . . . . . 2 . . . . High Security 4 | . . . . . . . . . 15 . . . . Max Security . | . . . . . . . . . . . . . . Squads Dispatched 45 | . 4 . 4 1 . . 7 2 27 . . . . Investigation 10 | . 2 . 1 1 . . 2 2 2 . . . . Extermination 2 | . . . . . . . . . 2 . . . . Reinforcement 14 | . 2 . 3 . . . 4 . 5 . . . . Assault 18 | . . . . . . . 1 . 17 . . . . Garrison 1 | . . . . . . . . . 1 . . . . Intercept . | . . . . . . . . . . . . . . Construction Impeded 1 | . . . . . . . . . 1 . . . . Haulers Reinforced 3 | . . . . . . . . . 3 . . . . Stealth | -11 -10 -10 -9 -9 -9 -8 -8 -8 -7 -7 -7 -7 -7 --------- Run | Scr Mat Min Mat Min Exi Min Mat Sto Fac Low Low Zio Dee Distress Signals 11 | . 4 . 2 . . . 1 2 2 . . . . Communications Jammed . | . . . . . . . . . . . . . . Distress Signals . | . . . . . . . . . . . . . . Times Spotted 437 | . 41 30 51 15 . 7 65 21 154 13 20 . 20 Peak Tracking Total 18 | . 7 8 6 3 . 3 8 4 18 4 4 . 3 Tactical Retreats 38 | . 9 . 2 3 . 1 2 . 12 1 5 . 3 Traps | -11 -10 -10 -9 -9 -9 -8 -8 -8 -7 -7 -7 -7 -7 ------- Run | Scr Mat Min Mat Min Exi Min Mat Sto Fac Low Low Zio Dee Traps Triggered 15 | . 3 . 2 . . . . 4 6 . . . . Indirectly 1 | . . . . . . . . . 1 . . . . Trap Hack Attempts . | . . . . . . . . . . . . . . Triggered . | . . . . . . . . . . . . . . Disarmed 4 | . . . . . . . . . 4 . . . . Reprogrammed . | . . . . . . . . . . . . . . Reused . | . . . . . . . . . . . . . . Traps Extracted . | . . . . . . . . . . . . . . Installed . | . . . . . . . . . . . . . . Triggered 2 | . . . . . . . . . . 2 . . . Machines | -11 -10 -10 -9 -9 -9 -8 -8 -8 -7 -7 -7 -7 -7 ---------- Run | Scr Mat Min Mat Min Exi Min Mat Sto Fac Low Low Zio Dee Machines Disabled 29 | . 1 3 6 1 . . 5 2 8 . . . 3 Max in Single Turn 2 | . 1 2 2 1 . . 1 1 1 . . . 1 Garrison Access 5 | . . . . . . . 1 1 3 . . . . Machines Sabotaged . | . . . . . . . . . . . . . . Garrisons Compromised . | . . . . . . . . . . . . . . Overloaded Fab Kills . | . . . . . . . . . . . . . . Fab Network Shutdowns . | . . . . . . . . . . . . . . Hacking | -11 -10 -10 -9 -9 -9 -8 -8 -8 -7 -7 -7 -7 -7 --------- Run | Scr Mat Min Mat Min Exi Min Mat Sto Fac Low Low Zio Dee Machines Accessed 59 | . 7 . 7 1 3 . 10 16 14 . . 1 . Terminals 42 | . 6 . 5 1 . . 9 13 8 . . . . Fabricators . | . . . . . . . . . . . . . . Repair Stations 3 | . 1 . . . . . . 1 1 . . . . Recycling Units 1 | . . . . . . . . 1 . . . . . Scanalyzers 4 | . . . 2 . . . . . 2 . . . . Garrison Access 5 | . . . . . . . 1 1 3 . . . . Total Hacks 218 | . 19 . 24 4 26 . 30 53 57 . . 5 . Successful 163 | . 10 . 13 . 26 . 24 38 47 . . 5 . Failed 52 | . 9 . 11 4 . . 5 13 10 . . . . Catastrophic 9 | . 5 . 3 . . . . 1 . . . . . Database Lockouts 3 | . . . . . . . 1 2 . . . . . Manual 77 | . 11 . 12 . . . 18 15 16 . . 5 . Terminals 146 | . 15 . 16 4 . . 29 45 37 . . . . Fabricators . | . . . . . . . . . . . . . . Repair Stations 10 | . 4 . . . . . . 3 3 . . . . Recycling Units 1 | . . . . . . . . 1 . . . . . Scanalyzers 22 | . . . 8 . . . . . 14 . . . . Garrison Access 8 | . . . . . . . 1 4 3 . . . . Terminal Hacks 108 | . 6 . 2 . 26 . 16 30 23 . . 5 . Record 49 | . 1 . . . 26 . 5 13 4 . . . . Part Schematic 18 | . . . . . . . . 6 7 . . 5 . Robot Schematic 2 | . . . . . . . . 1 1 . . . . Robot Analysis 11 | . 2 . . . . . 1 4 4 . . . . Prototype ID Bank 4 | . . . 1 . . . 3 . . . . . . Open Door 4 | . . . . . . . . 4 . . . . . Branch Access Points 1 | . 1 . . . . . . . . . . . . Alert Level 1 | . . . . . . . 1 . . . . . . Unreport Threat 10 | . 2 . 1 . . . 5 1 1 . . . . Disarm Traps 2 | . . . . . . . . . 2 . . . . Investigation Status 1 | . . . . . . . 1 . . . . . . Recall Reinforcements 1 | . . . . . . . . . 1 . . . . Hauler Manifests 2 | . . . . . . . . 1 1 . . . . Registered Prototypes 1 | . . . . . . . . . 1 . . . . Zone Layout 1 | . . . . . . . . . 1 . . . . Fabricator Hacks . | . . . . . . . . . . . . . . Repair Station Hacks 9 | . 4 . . . . . . 3 2 . . . . Scan Component 5 | . 2 . . . . . . 2 1 . . . . Repair 4 | . 2 . . . . . . 1 1 . . . . Recycling Unit Hacks 1 | . . . . . . . . 1 . . . . . Report Inventory 1 | . . . . . . . . 1 . . . . . Scanalyzer 20 | . . . 8 . . . . . 12 . . . . Insert Component 10 | . . . 4 . . . . . 6 . . . . Analyze 10 | . . . 4 . . . . . 6 . . . . Garrison Access Hacks 5 | . . . . . . . 1 1 3 . . . . Seal Access 5 | . . . . . . . 1 1 3 . . . . Unauthorized Hacks 20 | . . . 3 . . . 7 3 7 . . . . Terminals 20 | . . . 3 . . . 7 3 7 . . . . Assimilate 1 | . . . . . . . . . 1 . . . . Botnet 19 | . . . 3 . . . 7 3 6 . . . . Fabricators . | . . . . . . . . . . . . . . Repair Stations . | . . . . . . . . . . . . . . Recycling Units . | . . . . . . . . . . . . . . Scanalyzers . | . . . . . . . . . . . . . . Garrison Access . | . . . . . . . . . . . . . . Data Cores Recovered 3 | . . . . . . . 2 . 1 . . . . Used . | . . . . . . . . . . . . . . Hacking Detections 43 | . 7 . 7 1 . . 8 10 10 . . . . Full Trace Events 9 | . 2 . 1 1 . . 2 2 1 . . . . Feedback Events 1 | . . . . . . . . 1 . . . . . Corruption 1 | . . . . . . . . 1 . . . . . Feedback Blocked . | . . . . . . . . . . . . . . Robot Schematics Acquired 2 | . . . . . . . . 1 1 . . . . Robots Built . | . . . . . . . . . . . . . . Matter . | . . . . . . . . . . . . . . Time . | . . . . . . . . . . . . . . Total Robot Build Rating . | . . . . . . . . . . . . . . Part Schematics Acquired 28 | . . . 4 . . . . 6 13 . . 5 . Parts Built . | . . . . . . . . . . . . . . Matter . | . . . . . . . . . . . . . . Time . | . . . . . . . . . . . . . . Total Part Build Rating . | . . . . . . . . . . . . . . Parts Repaired 4 | . 2 . . . . . . 1 1 . . . . Time 113 | . 52 . . . . . . 38 23 . . . . Parts Recycled . | . . . . . . . . . . . . . . Recycled Matter . | . . . . . . . . . . . . . . Retrieved Matter . | . . . . . . . . . . . . . . Retrieved Components . | . . . . . . . . . . . . . . Parts Scanalyzed 10 | . . . 4 . . . . . 6 . . . . Part Schematics Acquired 10 | . . . 4 . . . . . 6 . . . . Parts Damaged 1 | . . . . . . . . . 1 . . . . Bothacking | -11 -10 -10 -9 -9 -9 -8 -8 -8 -7 -7 -7 -7 -7 ------------ Run | Scr Mat Min Mat Min Exi Min Mat Sto Fac Low Low Zio Dee Used RIF Installer . | . . . . . . . . . . . . . . Robots Hacked . | . . . . . . . . . . . . . . Non-combat . | . . . . . . . . . . . . . . Combat . | . . . . . . . . . . . . . . Robot Hacks Applied . | . . . . . . . . . . . . . . Relay Couplers Released . | . . . . . . . . . . . . . . Robots Rewired . | . . . . . . . . . . . . . . Allies Hacked . | . . . . . . . . . . . . . . Hacks Repelled . | . . . . . . . . . . . . . . Allies | -11 -10 -10 -9 -9 -9 -8 -8 -8 -7 -7 -7 -7 -7 -------- Run | Scr Mat Min Mat Min Exi Min Mat Sto Fac Low Low Zio Dee Total Allies 18 | . . . . 5 . . . 10 1 . . 2 . Largest Group 10 | . . . . 5 5 3 2 10 8 . . 2 . Highest-Rated Group 173 | . . . . 83 83 40 32 173 141 . . 59 . Highest-Rated Ally 31 | . . . . 31 31 16 16 29 29 . . 31 . Total Orders 3 | . . . . . . . . . 3 . . . . STAY 2 | . . . . . . . . . 2 . . . . FOLLOW 1 | . . . . . . . . . 1 . . . . Ally Attacks 70 | . . . . 7 . 5 8 47 3 . . . . Total Damage 891 | . . . . 129 . 39 92 586 45 . . . . Kills 10 | . . . . 3 . . 1 6 . . . . . Allies Corrupted . | . . . . . . . . . . . . . . Allies Melted . | . . . . . . . . . . . . . . Intel | -11 -10 -10 -9 -9 -9 -8 -8 -8 -7 -7 -7 -7 -7 ------- Run | Scr Mat Min Mat Min Exi Min Mat Sto Fac Low Low Zio Dee Robot Analysis Total 11 | . 2 . . . . . 1 4 4 . . . . Derelict Logs Recovered 9 | . . 2 . 1 . . . . . 3 1 2 . Drone Launches . | . . . . . . . . . . . . . . Drone Recoveries . | . . . . . . . . . . . . . . Exploration | -11 -10 -10 -9 -9 -9 -8 -8 -8 -7 -7 -7 -7 -7 ------------- Run | Scr Mat Min Mat Min Exi Min Mat Sto Fac Low Low Zio Dee Turns Passed 14957 | 38 1799 693 1505 902 454 613 1762 965 3111 778 965 752 620 Spaces Moved 14935 | 19 1486 758 1370 920 573 615 1671 888 2865 1001 1177 1044 548 Core 2 | . 2 . . . . . . . . . . . . Treads 553 | 17 536 . . . . . . . . . . . . Legs 2 | 2 . . . . . . . . . . . . . Wheels . | . . . . . . . . . . . . . . Hover 14378 | . 948 758 1370 920 573 615 1671 888 2865 1001 1177 1044 548 Flight . | . . . . . . . . . . . . . . Fastest Speed 26 | 120 52 52 72 72 72 72 72 72 72 72 72 72 26 Average Speed 74 | 155 92 60 72 72 72 72 72 72 79 72 72 72 55 Slowest Speed 160 | 160 160 72 72 72 72 72 72 146 146 72 72 72 136 Overloaded Moves . | . . . . . . . . . . . . . . Propulsion Burnouts . | . . . . . . . . . . . . . . Robots Hopped . | . . . . . . . . . . . . . . Cave-ins Triggered . | . . . . . . . . . . . . . . Exploration Rate (%) 84 | 2 99 100 97 99 94 95 99 93 63 96 99 90 50 Regions Visited 13 Branch Regions 9 Pre-discovered Areas 1 | . . . . . . . . . . . . 1 . Known Exits Taken 7 | . 1 . . . . . 1 1 1 1 1 1 . Unknown Exits Taken 6 | 1 . 1 1 1 1 1 . . . . . . . Scrap Searched 12 | . . 1 . . . 1 . . . 2 5 3 . Spaces Dug 77 | . . 13 . 10 . . . 15 28 11 . . . Terrain Destroyed 859 | . 39 132 62 79 . 12 103 77 276 54 14 . 11 Melee . | . . . . . . . . . . . . . . Projectile 73 | . . . 1 . . . . 14 42 3 6 . 7 AOE 786 | . 39 132 61 79 . 12 103 63 234 51 8 . 4 Terrain Rammed . | . . . . . . . . . . . . . . Walls Destroyed . | . . . . . . . . . . . . . . Machines Disabled . | . . . . . . . . . . . . . . Actions | -11 -10 -10 -9 -9 -9 -8 -8 -8 -7 -7 -7 -7 -7 --------- Run | Scr Mat Min Mat Min Exi Min Mat Sto Fac Low Low Zio Dee Total 17766 | 27 1812 945 1739 1109 614 769 2063 1132 3415 1038 1247 1044 812 Wait 1635 | . 226 112 200 139 42 143 210 161 239 13 12 . 138 Move 14923 | 19 1485 757 1369 919 572 614 1670 887 2864 1000 1176 1043 548 Hop . | . . . . . . . . . . . . . . Pick Up 39 | 2 5 . 4 . . 1 6 1 12 1 2 1 4 Fast Attach 93 | 3 13 1 13 1 . . 13 9 15 . . . 25 Attach 12 | . . . 1 1 . . 1 . 6 1 . . 2 Detach 15 | 1 . . . . . . . 1 7 . . . 6 Swap 66 | . 11 11 10 2 . . 13 . 8 . 2 . 9 Drop 119 | 2 10 7 15 . . . 20 8 23 . 2 . 32 Fire 549 | . 49 30 69 29 . 7 83 38 165 15 26 . 38 Melee . | . . . . . . . . . . . . . . Ram 16 | . 1 1 4 . . . 5 . 5 . . . . Kick . | . . . . . . . . . . . . . . Crush . | . . . . . . . . . . . . . . Escape Stasis 8 | . . . . . . . . 8 . . . . . Rewire 13 | . . 11 . . . . . 1 . 1 . . . Trap . | . . . . . . . . . . . . . . Miscellaneous 278 | . 12 15 54 18 . 4 42 18 71 7 27 . 10 Route ------- -11/Scrapyard -10/Materials (discovered 5 exits: *Mat x3 / *Min x2) -10/Mines (discovered 2 exits: *Mat x2) -9/Materials (discovered 5 exits: *Mat x3 / *Min x2) -9/Mines (discovered 3 exits: *Mat x2 / *Exi) -9/Exiles (discovered 2 exits: [*Min x2]) -8/Mines (discovered 2 exits: *Mat x2) -8/Materials (discovered 3 exits: *Fac x2 / *Sto) -8/Storage -7/Factory (discovered 2 exits: *Fac / *Low) -7/Lower Caves -7/Lower Caves (discovered 2 exits: *Fac / *Zio) -7/Zion (discovered 2 exits: *Dee / *Pro) -7/Deep Caves History --------- Turn | Location | Event 1 | -11/Scrapyard | Upgraded with Propulsion slot (x1) 1 | -11/Scrapyard | Upgraded with Utility slot (x1) 1 | -11/Scrapyard | Upgraded with Weapon slot (x1) 1 | -11/Scrapyard | Discovered new exit (range 1) 39 | -11/Scrapyard | Entered Materials 314 | -10/Materials | Build established: Mutant 321 | -10/Materials | Reached level 2 550 | -10/Materials | Discovered new exit (range 7) 744 | -10/Materials | Repaired Beam Cannon 771 | -10/Materials | Repaired Beam Cannon 795 | -10/Materials | Discovered new exit (range 7) 894 | -10/Materials | Upgraded with Utility slot (x1) 1100 | -10/Materials | Discovered new exit (range 17) 1221 | -10/Materials | Discovered new exit (range 12) 1386 | -10/Materials | Discovered new exit (range 3) 1420 | -10/Materials | Identified exit to Mines 1487 | -10/Materials | Reached level 3 1500 | -10/Materials | Upgraded with Power slot (x1) 1500 | -10/Materials | Upgraded with Propulsion slot (x1) 1838 | -10/Materials | Entered Mines 1876 | -10/Mines | Learned Materials security intel 1952 | -10/Mines | Learned 2 Materials zone layouts 1962 | -10/Mines | Discovered new exit (range 12) 2048 | -10/Mines | Assembled infested the area 2053 | -10/Mines | Assisted by a Guerilla fighting off Assembled 2121 | -10/Mines | Discovered new exit (range 10) 2126 | -10/Mines | Destroyed 17 combat bots 2216 | -10/Mines | Reached level 4 2521 | -10/Mines | Build established: Scavenger-Mutant 2531 | -10/Mines | Entered Materials 2531 | -9/Materials | Upgraded with Weapon slot (x1) 2533 | -9/Materials | Reached level 5 2534 | -9/Materials | Upgraded with Utility slot (x1) 2928 | -9/Materials | Reached level 6 2952 | -9/Materials | Discovered new exit (range 17) 3167 | -9/Materials | Discovered new exit (range 5) 3252 | -9/Materials | Reached level 7 3405 | -9/Materials | Discovered new exit (range 8) 3487 | -9/Materials | Build established: Scavenger-Gunner 3527 | -9/Materials | Upgraded with Utility slot (x1) 3620 | -9/Materials | Reached level 8 3655 | -9/Materials | Discovered new exit (range 16) 3895 | -9/Materials | Discovered new exit (range 10) 3997 | -9/Materials | Build established: Scavenger-Mutant 4036 | -9/Materials | Entered Mines 4036 | -9/Mines | Discovered new exit (range 9) 4038 | -9/Mines | Reached level 9 4157 | -9/Mines | Met a Derelict bent on vengeance 4254 | -9/Mines | Learned Materials terminal intel 4288 | -9/Mines | Discovered new exit (range 8) 4446 | -9/Mines | Excavation squad dispatched 4446 | -9/Mines | A large section of the Mines collapsed 4626 | -9/Mines | Found a hidden stash of uninstalled traps 4634 | -9/Mines | Deemed a non-threat by the Exiles lab entrance 4635 | -9/Mines | Discovered new exit (range 5) 4716 | -9/Mines | Assisted by bots powering up and referring to "LRC-V3" 4854 | -9/Mines | Build established: Scavenger-Gunner 4938 | -9/Mines | Entered Exiles 4938 | -9/Exiles | Accompanied by 5 allies 4948 | -9/Exiles | Discovered new exit (range 16) 4968 | -9/Exiles | Led the pair of lost Derelicts to a safe place 4970 | -9/Exiles | Met 8R-AWN 4984 | -9/Exiles | Met EX-HEX 5022 | -9/Exiles | Met EX-DEC 5037 | -9/Exiles | Visited The Gauntlet 5188 | -9/Exiles | Discovered new exit (range 15) 5242 | -9/Exiles | Met EX-BIN 5392 | -9/Exiles | Entered Mines 5392 | -8/Mines | Accompanied by 3 allies 5394 | -8/Mines | Reached level 10 5396 | -8/Mines | Discovered new exit (range 16) 5568 | -8/Mines | Discovered new exit (range 9) 5786 | -8/Mines | Reached level 11 6005 | -8/Mines | Entered Materials 6005 | -8/Materials | Accompanied by 2 allies 6006 | -8/Materials | Loaded intel: 12 terminal locations 6087 | -8/Materials | Reached level 12 6119 | -8/Materials | Destroyed 7 combat bots 6174 | -8/Materials | Upgraded with Utility slot (x3) 6511 | -8/Materials | Build established: Scavenger-Scout 6671 | -8/Materials | Discovered new exit (range 8) 6672 | -8/Materials | Central database locked down 6787 | -8/Materials | Reached level 13 6805 | -8/Materials | First assault squad dispatched 6877 | -8/Materials | Identified exit to Factory 6974 | -8/Materials | Discovered exit to Factory (range 21) 7099 | -8/Materials | Upgraded with Weapon slot (x1) 7225 | -8/Materials | Discovered new exit (range 10) 7245 | -8/Materials | Identified exit to Storage 7480 | -8/Materials | Build established: Hacker-Tank 7767 | -8/Materials | Entered Storage 7878 | -8/Storage | Repaired Reactive Plating 8050 | -8/Storage | Central database locked down 8054 | -8/Storage | Discovered exit to Factory (range 5) 8059 | -8/Storage | Reached level 14 8165 | -8/Storage | Assisted by bots powering up and referring to "LRC-V3" 8500 | -8/Storage | Central database locked down 8582 | -8/Storage | Build established: Commander-Tank 8732 | -8/Storage | Entered Factory 8732 | -7/Factory | Accompanied by 8 allies 8734 | -7/Factory | Reached level 15 8765 | -7/Factory | Upgraded with Power slot (x1) 9005 | -7/Factory | Discovered new exit (range 20) 9040 | -7/Factory | Garrison activated, responded to threat 9092 | -7/Factory | Destroyed 8 combat bots 9108 | -7/Factory | Identified exit to Factory 9132 | -7/Factory | First assault squad dispatched 9249 | -7/Factory | Discovered new exit (range 8) 9255 | -7/Factory | Identified exit to Lower Caves 9256 | -7/Factory | Build established: Hacker-Tank 9519 | -7/Factory | Reached level 16 9878 | -7/Factory | Destroyed 7 combat bots 10040 | -7/Factory | Repaired Broken Cmb. Airjet 11243 | -7/Factory | Reached level 17 11269 | -7/Factory | Destroyed 7 combat bots 11348 | -7/Factory | High security lockdown imminent 11369 | -7/Factory | Destroyed 7 combat bots 11428 | -7/Factory | High security lockdown engaged 11592 | -7/Factory | Destroyed 10 combat bots 11766 | -7/Factory | Destroyed 13 combat bots 11829 | -7/Factory | Reached level 18 11843 | -7/Factory | Entered Lower Caves 11879 | -7/Lower Caves | Encountered a Warlord checkpoint 12003 | -7/Lower Caves | Upgraded with Utility slot (x1) 12095 | -7/Lower Caves | Identified exit to Lower Caves 12099 | -7/Lower Caves | Learned location of 1 exit from Factory 12127 | -7/Lower Caves | Attracted the attention of an 0b10 checkpoint 12138 | -7/Lower Caves | Build established: Hacker-Gunner 12374 | -7/Lower Caves | Spotted B-75 Beast 12490 | -7/Lower Caves | Learned Factory security intel 12621 | -7/Lower Caves | Entered another Lower Caves area 12973 | -7/Lower Caves | Encountered a Warlord checkpoint 13205 | -7/Lower Caves | Attracted the attention of an 0b10 checkpoint 13470 | -7/Lower Caves | Spotted B-75 Beast 13477 | -7/Lower Caves | Destroyed B-75 Beast 13492 | -7/Lower Caves | Discovered new exit (range 19) 13505 | -7/Lower Caves | Identified exit to Zion 13586 | -7/Lower Caves | Entered Zion 13630 | -7/Zion | Discovered new exit (range 18) 13645 | -7/Zion | Identified exit to Proximity Caves 13700 | -7/Zion | System corruption cleaned by Quarantine Array 13727 | -7/Zion | Learned location of 1 exit from Factory 13826 | -7/Zion | Gained Derelict followers 14138 | -7/Zion | Acquired unknown access codes intercepted by a Zionite 14321 | -7/Zion | Opened final containment barrier to the Deep Caves 14336 | -7/Zion | Discovered new exit (range 3) 14336 | -7/Zion | Saw the warning signs outside the Deep Caves entrance 14338 | -7/Zion | Identified exit to Deep Caves 14338 | -7/Zion | Entered Deep Caves 14511 | -7/Deep Caves | Z-Facility disabled 14538 | -7/Deep Caves | Attacked by Z-Imprinter 14570 | -7/Deep Caves | Core integrity fell below 50% 14595 | -7/Deep Caves | Core integrity fell below 20% 14600 | -7/Deep Caves | Destroyed Z-Imprinter 14607 | -7/Deep Caves | Found Prototype Protection 14607 | -7/Deep Caves | Identified Zio. Weapon Casing 14652 | -7/Deep Caves | Found Prototype Device 14652 | -7/Deep Caves | Identified Zio. Metafield Generator 14958 | -7/Deep Caves | Destroyed by P4-J4M(z) with Zionite Laser-S Last Messages --------------- 14905_ Acquired Exp. Heat Sink. 14907_ Dropped Zio. Laser-M. 14908_ Acquired Prototype Energy Gun. 14908_ Identified Zio. Laser-S. 14909_ Dropped Zio. Laser-S. 14910_ Acquired Zio. Laser-M. 14912_ Acquired 10 matter. 14913_ Acquired 20 matter. 14927_ Y0-MVA(z) destroyed. 14932_ BO-EOL(z) destroyed. 14939_ Destroyed Zio. Glidesys I. 14939_ Destroyed Zio. Light Carapace. 14942_ Zio. Laser-M destroyed. 14945_ 2A-3QY(z) heat spikes uncontrollably. 14945_ 2A-3QY(z) overheating. 14946_ Zio. Glidesys II permanently disabled. 14946_ Overheating: Short circuit. 14954_ Zio. Laser-S melted. 14954_ 2A-3QY(z) destroyed. 14958_ Zio. Laser-M destroyed. Map ----- +----------------------------------------------------+ | | | | | | | ?????????????????????????????????????????????????? | | ?????????????????????????????????????????????????? | | ?????????????????????????????????????????????????? | | ?????????????????????????????????????????????????? | | ????????????????????????????? ##?????????????????? | | ????????????????????????????? #### ???????????? | | ????????????????????????????? !# #?????????? | | ????????????????????????????? !%= ???????? | | ????????????????????????????? !!! ??????? | | ????????????????????????????? % ?????? | | ????????????????????????????## = ?????? | | ????????????????????????????# ????? | | ??????????????????????????### ????? | | ??????????????????????????? # ???? | | ??????????????????????????? ???? | | ???????????????????????????? ???? | | ????????????????????????????# ??? | | ???????????????????????????## ??? | | ???????????????????????????# ?? | | ????????????????????????????# ?? | | ?????????????????????????#### ?? | | ????????????????????????## # ?? | | ????????????????????????#@ z= ?? | | ????????????????????????# *%! ?? | | ????????????????????????; ! | | ????????????????????????## | | ?????????????????????????### | | ???????????????????????????# | | ???????????????????????????## | | ????????????????????????????# | | ?????????????????????????##### | | ????????????????????????## ## | | ????????????????????????# ## | | ????????????????????????# # | | ???????????????????????## | | ??????????? ######### | | ??????????? | | ??????????? | | ??????????? | | ??????????? ##### | | ???????????? ## ???????# | | ???????????????????????### | | ?????????????????????????# ** | | ?????????????????????????## =! !! | | ??????????????????????????# % [! | | ??????????????????????????# ##" ["" | | ??????????????????????????## ### " ##"# | +----------------------------------------------------+ Best States ------------- Heat Dissipation 93 Energy Generation 71 Energy Capacity 1550 Matter Stores 350 Matter Capacity 350 Sight Range 21 Robot Scan Range 17 Terrain Scan Density 10 Armor Coverage 450 Resistance: KI 20 Resistance: TH 10 Resistance: EX 10 Power Shielding 33 Weapon Cycling 15 Phase Shifting 15 Evasion (%) 88 Targeting Accuracy 16 Recoil Reduction 2 Particle Charging 15 Offensive Hacking 25 Defensive Hacking 5 Item Schematics ----------------- Hacking Suite | -9/Materials | Scanalyzed Rocket Launcher | -9/Materials | Scanalyzed Lgt. EM Pulse Cannon | -9/Materials | Scanalyzed Hrd. Light Armor Plating | -9/Materials | Scanalyzed Proton Cannon | -8/Storage | Hacked Phase Cannon | -8/Storage | Hacked Weapon Cycler | -8/Storage | Hacked Imp. Trap Extractor | -8/Storage | Hacked Hvy. Mace | -8/Storage | Hacked Hardlight Generator | -8/Storage | Hacked Plasma Cannon | -7/Factory | Hacked Kinecellerator | -7/Factory | Hacked Particle Charger | -7/Factory | Scanalyzed Proton Missile Launcher | -7/Factory | Scanalyzed Remote Datajack | -7/Factory | Scanalyzed Adv. Sensor Array | -7/Factory | Scanalyzed System Shield | -7/Factory | Scanalyzed Triangulator | -7/Factory | Hacked Cld. Plasma Cannon | -7/Factory | Scanalyzed Imp. Melee Analysis Suite | -7/Factory | Hacked Hvy. Gatling Laser | -7/Factory | Hacked Imp. Particle Charger | -7/Factory | Hacked Adv. Shield Generator | -7/Factory | Hacked Beamcaster | -7/Zion | Free Riot Gun | -7/Zion | Free Battle Rifle | -7/Zion | Free Barrage Gun | -7/Zion | Free Flamer | -7/Zion | Free Robot Schematics ------------------ H-55 Commando | -8/Storage | Hacked Y-54 Guardian | -7/Factory | Hacked Fabricated ------------ Nothing Alien Tech Used ----------------- None Achievements -------------- Are We The Baddies? Dodgeball, But With Guns Hard Hitter Challenges ------------ None RPGLIKE | -11 -10 -10 -9 -9 -9 -8 -8 -8 -7 -7 -7 -7 -7 --------- Run | Scr Mat Min Mat Min Exi Min Mat Sto Fac Low Low Zio Dee Levels Raised 17 | . 2 1 4 1 . 2 2 1 4 . . . . XP Earned 29659 | 3000 3235 1825 6807 1467 97 1650 3742 1526 5199 281 476 105 249 XP Spent 28495 | 2970 3030 . 5875 . . . 9075 1430 2850 3265 . . . Upgrades 62 | 15 9 . 15 . . . 10 4 4 5 . . . Power Slot 2 | . 1 . . . . . . . 1 . . . . Propulsion Slot 2 | 1 1 . . . . . . . . . . . . Utility Slot 8 | 1 1 . 2 . . . 3 . . 1 . . . Weapon Slot 3 | 1 . . 1 . . . 1 . . . . . . Core Integrity 16 | 6 2 . 5 . . . . . . 3 . . . Heat Dissipation 7 | 2 . . 2 . . . . 2 . 1 . . . Energy Storage 1 | . . . 1 . . . . . . . . . . Matter Storage 1 | 1 . . . . . . . . . . . . . Mass Support 1 | 1 . . . . . . . . . . . . . Inventory Capacity 5 | 2 . . 1 . . . . 1 1 . . . . Sight Range 1 | . 1 . . . . . . . . . . . . Sensor Range 2 | . 1 . . . . . 1 . . . . . . Ranged Accuracy 3 | . 1 . 1 . . . 1 . . . . . . Hack Attack % 3 | . 1 . . . . . 1 . 1 . . . . Hack Defense % 1 | . . . . . . . 1 . . . . . . KI Resistance % 2 | . . . 1 . . . 1 . . . . . . TH Resistance % 2 | . . . 1 . . . 1 . . . . . . EX Resistance % 2 | . . . . . . . . 1 1 . . . . Protomatter Created 3711 | . 194 108 573 114 . 94 680 378 1198 57 199 . 116 Integrity Restored 5135 | . 224 283 971 318 . 40 712 262 1379 153 583 . 210 Core 3490 | . 224 183 564 222 . 31 480 160 924 153 339 . 210 Parts 1645 | . . 100 407 96 . 9 232 102 455 . 244 . . Protomatter Decayed 1784 | . 46 48 133 68 . 53 394 460 582 . . . . Game ------ Seed MetafiberForceShredder Manual? 0 Play Time 04:05:41 Cumulative 139.5 hours Start 2021.05.21 @ 22:53:06 End 2021.05.23 @ 18:46:18 Sessions 9 Manual Loads 0 Difficulty Rogue Special Mode Winter2019/RPGLIKE Game No. 82 Rogue 57 Adventurer 25 Explorer 0 Win Type - Total 0 Types 0/0/0/0/0/0/0/0/0 Lore% 46 Gallery% 46 Achievement% 38 Wizard Run 0 Options --------- ASCII 0 Keyboard 1 Movement Vi Keybinds 1 Fullscreen 2 Font 14/SmallcapsGlow Map View 84x54 Tactical HUD 1 Map Filters NONE Filters NONE Steam 1 RUN: 7cedb6b8-0115-4953-97a5-3436b8139576